bitfinex/quotes_SOLUSD_20260220
["timestamp","ask_amount","ask_price","bid_price","bid_amount"]
[1771604884744,4.4360672,84.288,84.251,4.40631949]
[1771604884745,11.53739434,84.29,84.251,4.40631949]
[1771604884944,4.4360672,84.259,84.201,11.87634351]
[1771604885141,88.97958213,84.289,84.201,11.87634351]
[1771604885142,11.53739434,84.23,84.201,11.87634351]
[1771604885342,11.53739434,84.22,84.19,0.1]
[1771604885562,11.53739434,84.23,84.2,4.50631949]
[1771604885769,11.53739434,84.24,84.202,4.40631949]
[1771604886071,11.53739434,84.23,84.202,4.40631949]
[1771604886246,3.69383402,84.269,84.202,4.40631949]
[1771604886454,11.53739434,84.23,84.2,0.1]
[1771604886646,11.53739434,84.22,84.2,0.1]
[1771604887255,11.53739434,84.21,84.2,0.1]
[1771604887455,11.53739434,84.22,84.2,0.1]
[1771604888262,23.41115991,84.22,84.2,0.1]
[1771604888567,23.41115991,84.22,84.19,0.1]
[1771604888763,11.53739434,84.23,84.2,11.53739434]
[1771604888964,11.86732332,84.265,84.211,4.26216431]
[1771604889151,11.86732332,84.265,84.198,3.69383402]
[1771604889152,11.53739434,84.24,84.204,4.26216431]
[1771604889353,11.53739434,84.23,84.2,15.79955865]
[1771604889557,11.53739434,84.23,84.191,4.26216431]
[1771604889861,11.53739434,84.24,84.201,4.26216431]
[1771604890376,11.53739434,84.24,84.203,4.26216431]
[1771604890578,11.53739434,84.23,84.203,4.26216431]
[1771604890877,11.86957708,84.249,84.211,4.26216431]
[1771604891065,11.53739434,84.25,84.211,4.26216431]
[1771604891263,2.97772038,84.249,84.201,41.5671386]
[1771604891468,11.53739434,84.21,84.19,0.06992201]
[1771604891771,11.53739434,84.2,84.188,1e-08]
[1771604891955,11.53739434,84.2,84.148,4.26216431]
[1771604891956,2.88927909,84.199,84.148,4.26216431]
[1771604892158,11.53739434,84.18,84.17,0.07081536]
[1771604892470,11.8749332,84.211,84.17,4.33297967]
[1771604892651,11.53739434,84.2,84.17,0.07081536]
[1771604892857,2.86038629,84.179,84.128,4.26216431]
[1771604893148,2.86038629,84.179,84.13,4.36216431]
[1771604893386,11.53739434,84.17,84.14,11.53739434]
[1771604893552,11.53739434,84.17,84.141,4.26216431]
[1771604894051,2.83178242,84.207,84.141,4.26216431]
[1771604894251,11.53739434,84.19,84.16,15.79955865]
[1771604894446,11.53739434,84.19,84.142,41.59634902]
[1771604894447,11.53739434,84.21,84.171,4.26216431]
[1771604895498,11.53739434,84.22,84.181,4.26216431]
[1771604896281,11.87380519,84.219,84.183,4.26216431]
[1771604897768,11.53739434,84.21,84.169,4.26216431]
[1771604897951,11.87380519,84.219,84.181,4.26216431]
[1771604898356,11.873033,84.225,84.191,4.26216431]
[1771604898553,11.873033,84.225,84.163,0.14216157]
[1771604898554,11.53739434,84.22,84.18,11.53739434]
[1771604898760,11.53739434,84.2,84.167,4.26216431]
[1771604899075,11.53739434,84.21,84.171,4.26216431]
[1771604899471,11.53739434,84.2,84.171,4.26216431]
[1771604899781,11.53739434,84.2,84.106,47.55894219]
[1771604899782,11.53739434,84.19,84.151,4.26216431]
[1771604899970,11.53739434,84.18,84.151,4.26216431]
[1771604900171,11.53739434,84.19,84.151,4.26216431]
[1771604900364,11.53739434,84.19,84.152,11.88325886]
[1771604900672,11.53739434,84.2,84.161,4.26216431]
[1771604900871,59.02112236,84.24,84.152,41.59140602]
[1771604900872,11.53739434,84.22,84.181,4.26216431]
[1771604901053,11.53739434,84.21,84.181,4.26216431]
[1771604901254,11.53739434,84.21,84.171,4.26216431]
[1771604901558,11.53739434,84.2,84.171,4.26216431]
[1771604902277,11.53739434,84.21,84.171,4.26216431]
[1771604902655,11.53739434,84.21,84.173,4.26216431]
[1771604902857,11.87380587,84.219,84.181,4.26216431]
[1771604903471,11.87380587,84.219,84.19,11.53739434]
[1771604903667,11.87290494,84.226,84.191,4.26216431]
[1771604903865,11.87290494,84.226,84.201,4.26216431]
[1771604904462,11.87290494,84.226,84.188,11.87817741]
[1771604904768,11.53739434,84.22,84.181,4.26216431]
[1771604905085,14.70468736,84.226,84.19,11.53739434]
[1771604905575,11.53739434,84.21,84.17,11.53739434]
[1771604905772,2.83178242,84.209,84.17,11.53739434]
[1771604905968,2.83178242,84.225,84.181,4.26216431]
[1771604906167,11.53739434,84.22,84.181,4.26216431]
[1771604906553,11.53739434,84.21,84.17,15.79955865]
[1771604906762,11.53739434,84.21,84.18,11.53739434]
[1771604907058,11.53739434,84.21,84.171,4.26216431]
[1771604907657,2.83178242,84.209,84.171,4.26216431]
[1771604908266,41.55831818,84.219,84.18,11.53739434]
[1771604908479,11.53739434,84.21,84.172,4.26216431]
[1771604909367,2.83178242,84.208,84.172,4.26216431]
[1771604909560,11.53739434,84.19,84.152,4.26216431]
[1771604910372,41.56325332,84.209,84.161,4.26216431]
[1771604910373,11.53739434,84.2,84.161,4.26216431]
[1771604910572,2.83178242,84.208,84.17,11.53739434]
[1771604910774,32.51646141,84.219,84.181,4.26216431]
[1771604910972,11.87444007,84.215,84.19,11.53739434]
[1771604911867,11.87112704,84.238,84.21,11.53739434]
[1771604912481,2.83178242,84.254,84.22,11.53739434]
[1771604912785,2.83178242,84.249,84.211,4.26216431]
[1771604913085,41.54154747,84.253,84.196,4.26216431]
[1771604913086,2.83178242,84.239,84.196,4.26216431]
[1771604913378,2.83178242,84.239,84.201,4.26216431]
[1771604914084,11.87112704,84.238,84.21,11.53739434]
[1771604914869,11.86915444,84.252,84.22,15.79955865]
[1771604915177,11.53739434,84.25,84.211,4.26216431]
[1771604915379,2.83178242,84.249,84.211,4.26216431]
[1771604915880,11.86971797,84.248,84.212,16.1369565]
[1771604916078,11.86802753,84.26,84.221,4.26216431]
[1771604916271,2.97394399,84.259,84.221,4.26216431]
[1771604916584,2.97394399,84.259,84.22,11.53739434]
[1771604917279,11.53739434,84.25,84.21,11.53739434]
[1771604917579,11.53739434,84.25,84.212,4.27862241]
[1771604917960,11.86957708,84.249,84.212,4.27862241]
[1771604918174,11.86957708,84.249,84.213,11.87465118]
[1771604918376,0.14216157,84.257,84.23,11.53739434]
[1771604918561,0.14216157,84.257,84.23,4.27862241]
[1771604918762,0.14216157,84.257,84.221,4.27862241]
[1771604918962,11.86830924,84.258,84.221,4.27862241]
[1771604919180,2.83178242,84.257,84.221,4.27862241]
[1771604920168,41.54006836,84.256,84.221,4.27862241]
[1771604920363,2.83178242,84.255,84.193,29.69365116]
[1771604920670,11.86676001,84.269,84.231,4.27862241]
[1771604921269,29.66152048,84.285,84.251,4.27862241]
[1771604921469,29.66152048,84.285,84.214,0.14216157]
[1771604921470,2.83178242,84.308,84.27,11.53739434]
[1771604921666,29.65431838,84.305,84.271,4.27862241]
[1771604921877,11.86112989,84.309,84.281,4.27862241]
[1771604922197,11.86112989,84.309,84.28,6.1044044]
[1771604922376,11.59633297,84.3,84.261,4.27862241]
[1771604922874,2.83178242,84.299,84.261,4.27862241]
[1771604923069,2.83178242,84.299,84.261,16.14650909]
[1771604923269,44.34573703,84.309,84.27,11.59633297]
[1771604923491,11.86112989,84.309,84.281,4.27862241]
[1771604923876,41.51395461,84.309,84.281,4.27862241]
[1771604924070,41.51395461,84.309,84.261,11.86788668]
[1771604924071,0.14216157,84.308,84.271,4.27862241]
[1771604924281,0.1704794,84.299,84.261,4.27862241]
[1771604924577,0.14216157,84.299,84.261,4.27862241]
[1771604924780,44.34573703,84.309,84.28,11.59633297]
[1771604924980,11.86112989,84.309,84.281,4.27862241]
[1771604925592,11.59633297,84.34,84.301,4.27862241]
[1771604926100,11.91839253,84.33,84.301,4.27862241]
[1771604926301,65.35843021,84.329,84.301,4.27862241]
[1771604927177,95.00422228,84.329,84.301,4.27862241]
[1771604927678,65.35843021,84.329,84.301,4.27862241]
[1771604927879,53.5,84.329,84.302,11.86211477]
[1771604928075,3.02978242,84.328,84.291,4.27862241]
[1771604928290,11.85972319,84.319,84.281,4.27862241]
[1771604928488,11.59633297,84.3,84.27,16.14519233]
[1771604928888,3.02978242,84.309,84.271,4.27862241]
[1771604929299,11.59633297,84.3,84.271,4.27862241]
[1771604929483,11.59633297,84.3,84.271,16.14510079]
[1771604929830,3.02978242,84.309,84.271,16.14510079]
[1771604929992,11.59633297,84.3,84.261,4.27862241]
[1771604930193,11.86127057,84.308,84.272,4.27862241]
[1771604930383,11.59633297,84.3,84.262,4.27862241]
[1771604931106,41.51444701,84.308,84.271,4.27862241]
[1771604931107,11.86127057,84.308,84.271,4.27862241]
[1771604931512,11.86127057,84.308,84.281,4.27862241]
[1771604931805,11.59633297,84.3,84.271,4.27862241]
[1771604932492,11.86141127,84.307,84.273,4.27862241]
[1771604932689,11.59633297,84.32,84.281,4.27862241]
[1771604932885,11.86018767,84.316,84.281,4.27862241]
[1771604933091,11.85845745,84.328,84.291,4.27862241]
[1771604934985,11.85845745,84.328,84.293,4.27862241]
[1771604935488,11.85788609,84.333,84.301,4.27862241]
[1771604936087,11.85723268,84.337,84.301,4.27862241]
[1771604936287,11.59633297,84.33,84.301,4.27862241]
[1771604936913,11.85723268,84.337,84.301,4.27862241]
[1771604937210,32.66777142,84.352,84.303,4.27862241]
[1771604937389,11.59633297,84.35,84.311,4.27862241]
[1771604937589,11.855224,84.351,84.321,4.27862241]
[1771604937789,11.59633297,84.35,84.311,4.27862241]
[1771604938406,41.49328401,84.351,84.311,4.27862241]
[1771604938709,11.59633297,84.35,84.311,4.27862241]
[1771604939588,41.49426785,84.349,84.313,4.27862241]
[1771604940302,11.59633297,84.33,84.301,4.27862241]
[1771604940885,3.02978242,84.319,84.281,11.86507041]
[1771604941104,3.02978242,84.319,84.282,4.27862241]
[1771604941285,11.59633297,84.31,84.282,4.27862241]
[1771604941490,11.85986384,84.318,84.283,11.86478886]
[1771604941691,11.85986384,84.318,84.284,4.27862241]
[1771604941903,41.50952346,84.318,84.284,4.27862241]
[1771604942110,11.59633297,84.31,84.271,4.27862241]
[1771604942715,44.53930588,84.318,84.271,4.27862241]
[1771604942906,11.59633297,84.31,84.271,4.27862241]
[1771604943092,44.53930588,84.318,84.281,4.27862241]
[1771604943695,44.53930588,84.318,84.282,16.14355205]
[1771604943910,11.59633297,84.31,84.282,4.27862241]
[1771604944108,11.59633297,84.31,84.272,4.27862241]
[1771604944589,3.02978242,84.317,84.272,4.27862241]
[1771604944785,3.02978242,84.317,84.281,4.27862241]
[1771604945394,11.85986384,84.318,84.29,11.59633297]
[1771604945607,11.85986384,84.318,84.291,4.27862241]
[1771604945806,29.64644104,84.328,84.291,4.27862241]
[1771604945994,29.64644104,84.328,84.293,4.27862241]
[1771604946699,3.02978242,84.335,84.301,4.124125]
[1771604946700,11.85759591,84.335,84.301,4.124125]
[1771604947709,11.85831683,84.329,84.292,4.07700217]
[1771604948026,11.85700545,84.339,84.311,4.07700217]
[1771604948223,41.49928245,84.339,84.311,4.07700217]
[1771604948512,11.59633297,84.33,84.301,4.07700217]
[1771604948712,3.02978242,84.328,84.291,4.07700217]
[1771604949015,11.59633297,84.32,84.291,4.07700217]
[1771604949398,11.59633297,84.32,84.282,4.07700217]
[1771604949600,104.4,84.319,84.282,4.07700217]
[1771604949800,11.85986384,84.318,84.284,4.07700217]
[1771604950112,44.53930588,84.318,84.284,4.07700217]
[1771604950416,44.53930588,84.318,84.273,4.07700217]
[1771604950417,14.62611539,84.31,84.273,4.07700217]
[1771604950612,11.59633297,84.31,84.273,4.07700217]
[1771604951016,104.4,84.317,84.281,4.07700217]
[1771604951199,11.85986384,84.318,84.291,4.07700217]
[1771604951200,116.25986384,84.318,84.291,4.07700217]
[1771604951595,116.25986384,84.318,84.273,4.07700217]
[1771604951596,11.59633297,84.31,84.273,4.07700217]
[1771604951804,3.02978242,84.317,84.273,4.07700217]
[1771604952120,41.51050808,84.316,84.275,4.07700217]
[1771604952314,11.59633297,84.29,84.256,4.07700217]
[1771604953029,11.59633297,84.28,84.256,4.07700217]
[1771604953321,11.59633297,84.28,84.24,11.59633297]
[1771604953518,11.59633297,84.27,84.23,11.59633297]
[1771604953698,4.20473743,84.279,84.23,11.59633297]
[1771604954119,11.59633297,84.26,84.231,11.87211359]
[1771604954603,41.5292247,84.278,84.21,41.28388547]
[1771604954604,11.59633297,84.25,84.21,41.28388547]
[1771604955198,11.59633297,84.25,84.211,4.07700217]
[1771604955619,4.20473743,84.249,84.211,4.07700217]
[1771604956519,11.86971797,84.248,84.213,4.07700217]
[1771604956900,11.59633297,84.23,84.203,4.07700217]
[1771604957398,4.20473743,84.239,84.203,4.07700217]
[1771604957799,11.59633297,84.23,84.203,4.07700217]
[1771604958014,11.59633297,84.21,84.182,4.07700217]
[1771604958399,11.59633297,84.21,84.183,11.8788829]
[1771604958715,11.87521523,84.209,84.183,11.8788829]
[1771604958895,11.59633297,84.2,84.18,0.1]
[1771604960119,4.20473743,84.208,84.18,0.1]
[1771604960300,11.87521523,84.209,84.181,4.07700217]
[1771604960509,4.20473743,84.22,84.183,4.07700217]
[1771604960510,11.59633297,84.22,84.183,4.07700217]
[1771604960702,23.46864831,84.23,84.191,4.07700217]
[1771604961010,57.35402209,84.23,84.191,4.07700217]
[1771604961820,27.67338574,84.23,84.191,4.07700217]
[1771604962116,11.87231534,84.23,84.201,4.07700217]
[1771604962512,52.98063209,84.24,84.201,4.07700217]
[1771604962513,16.07572355,84.239,84.201,15.9532498]
[1771604962716,4.20473743,84.238,84.202,4.07700217]
[1771604963398,11.59633297,84.23,84.183,4.07700217]
[1771604963605,15.8010704,84.21,84.18,4.17700217]
[1771604963804,15.8010704,84.21,84.181,4.07700217]
[1771604963805,4.20473743,84.21,84.181,4.07700217]
[1771604964004,11.59633297,84.21,84.181,4.07700217]
[1771604965920,4.20473743,84.208,84.18,0.1]
[1771604966922,3.69383402,84.237,84.18,0.1]
[1771604966923,4.20473743,84.229,84.181,11.87916513]
[1771604967118,29.68063635,84.23,84.18,0.1]
[1771604967119,4.20473743,84.199,84.18,0.1]
[1771604967301,4.20473743,84.209,84.18,0.1]
[1771604967505,4.20473743,84.209,84.18,4.17700217]
[1771604967717,4.20473743,84.219,84.182,4.07700217]
[1771604967916,11.87394618,84.218,84.184,4.07700217]
[1771604968525,11.87291968,84.226,84.191,4.07700217]
[1771604969403,4.20473743,84.225,84.191,4.07700217]
[1771604970301,4.20473743,84.225,84.183,11.8788829]
[1771604970302,11.8731003,84.224,84.193,4.07700217]
[1771604970701,4.20473743,84.219,84.187,11.87818414]
[1771604970923,11.59633297,84.21,84.182,4.07700217]
[1771604971228,15.8010704,84.21,84.182,4.07700217]
[1771604971926,15.8010704,84.21,84.18,0.1]
[1771604971927,11.59633297,84.2,84.18,0.1]
[1771604972147,4.20473743,84.209,84.18,0.1]
[1771604972424,11.87535626,84.208,84.18,0.1]
[1771604972928,11.87352323,84.221,84.181,4.07700217]
[1771604973127,11.96613214,84.24,84.201,4.07700217]
[1771604973433,4.20473743,84.238,84.201,4.07700217]
[1771604973620,11.59633297,84.22,84.191,4.07700217]
[1771604973821,4.20473743,84.219,84.191,4.07700217]
[1771604974029,4.20473743,84.219,84.181,4.07700217]
[1771604974215,11.59633297,84.21,84.181,4.07700217]
[1771604974529,11.59633297,84.23,84.201,4.07700217]
[1771604974732,11.59633297,84.24,84.201,4.07700217]
[1771604975311,4.20473743,84.249,84.201,4.07700217]
[1771604975714,15.8010704,84.26,84.211,4.07700217]
[1771604975929,11.59633297,84.25,84.211,4.07700217]
[1771604976124,11.59633297,84.24,84.211,4.07700217]
[1771604976834,11.59633297,84.24,84.212,11.87479219]
[1771604977009,11.59633297,84.25,84.213,4.07700217]
[1771604977213,4.28624352,84.258,84.213,4.07700217]
[1771604977414,11.86816838,84.259,84.18,0.1]
[1771604977415,4.28624352,84.219,84.18,0.1]
[1771604977607,4.28624352,84.189,84.136,11.88551868]
[1771604977923,11.59633297,84.15,84.112,29.72215296]
[1771604978108,11.59633297,84.18,84.141,4.30623547]
[1771604978310,11.59633297,84.17,84.141,4.30623547]
[1771604978527,11.59633297,84.17,84.096,6.19218507]
[1771604978528,11.59633297,84.15,84.11,0.1]
[1771604978725,11.59633297,84.12,84.11,0.1]
[1771604978928,11.59633297,84.13,84.11,0.1]
[1771604979538,11.59633297,84.12,84.11,0.1]
[1771604979828,5.36086188,84.183,84.11,0.1]
[1771604979829,11.59633297,84.15,84.111,4.30623547]
[1771604980128,11.59633297,84.14,84.111,4.30623547]
[1771604980825,11.59633297,84.15,84.111,4.30623547]
[1771604981219,11.59633297,84.16,84.121,4.30623547]
[1771604981421,11.59633297,84.16,84.123,4.30623547]
[1771604981933,11.59633297,84.17,84.134,0.14216157]
[1771604982133,11.59633297,84.17,84.143,4.30623547]
[1771604982520,4.28624352,84.172,84.116,0.14216157]
[1771604982719,11.59633297,84.16,84.121,4.30623547]
[1771604983130,11.59633297,84.15,84.121,4.30623547]
[1771604983634,11.59633297,84.15,84.112,4.30623547]
[1771604984027,11.64125116,84.15,84.112,4.30623547]
[1771604984938,11.64125116,84.14,84.112,4.30623547]
[1771604985117,4.28624352,84.149,84.113,4.30623547]
[1771604985317,11.64125116,84.15,84.115,4.30623547]
[1771604985837,11.88248422,84.158,84.121,4.30623547]
[1771604986241,11.64125116,84.15,84.121,4.30623547]
[1771604986422,15.92749468,84.15,84.111,4.30623547]
[1771604986918,11.64125116,84.14,84.11,0.1]
[1771604987120,4.28624352,84.139,84.11,0.1]
[1771604987535,11.64125116,84.13,84.11,0.1]
[1771604987736,47.52114255,84.174,84.08,0.1]
[1771604987737,4.28624352,84.119,84.08,0.1]
[1771604987918,11.64125116,84.09,84.084,10.62496733]
[1771604988120,4.24338108,84.105,84.084,10.62496733]
[1771604988423,11.64125116,84.1,84.084,10.62496733]
[1771604992248,11.64125116,84.11,84.085,4.30623547]
[1771604992552,11.64125116,84.1,84.084,10.62496733]
[1771604992753,11.64125116,84.11,84.084,10.62496733]
[1771604993059,11.64125116,84.11,84.084,14.9312028]
[1771604993243,11.64125116,84.12,84.086,4.30623547]
[1771604993431,11.64125116,84.13,84.091,4.30623547]
[1771604993635,11.64125116,84.12,84.091,4.30623547]
[1771604993949,11.88704029,84.126,84.091,4.30623547]
[1771604995924,4.20094726,84.125,84.091,4.30623547]
[1771604996128,11.88704029,84.126,84.091,4.30623547]
[1771604996538,11.64125116,84.12,84.091,4.30623547]
[1771604997344,4.20094726,84.099,84.084,10.62496733]
[1771604997645,11.64125116,84.09,84.084,10.58253351]
[1771604998028,11.64125116,84.1,84.084,10.58253351]
[1771604998232,11.64125116,84.11,84.085,4.30623547]
[1771604998425,11.64125116,84.1,84.084,10.58253351]
[1771604998630,11.64125116,84.11,84.085,11.89272759]
[1771604998842,11.88849952,84.115,84.085,4.30623547]
[1771604999050,11.64125116,84.11,84.085,4.30623547]
[1771604999848,11.88849952,84.115,84.085,4.30623547]
[1771605000449,27.68805117,84.12,84.085,4.30623547]
[1771605000654,11.64125116,84.1,84.084,10.58253351]
[1771605000947,4.03541316,84.089,84.051,4.30623547]
[1771605001128,4.03541316,84.089,84.052,4.30623547]
[1771605001330,3.99505902,84.069,84.023,4.30623547]
[1771605001547,11.64125116,84.05,84.023,4.30623547]
[1771605001750,11.64125116,84.04,84.001,4.30623547]
[1771605001928,11.64125116,84.03,84.002,4.30623547]
[1771605002254,11.64125116,84.02,84.001,11.90462018]
[1771605002455,11.64125116,84.05,84.011,4.30623547]
[1771605002746,4.28624352,84.035,84.0,0.8]
[1771605002938,11.64125116,84.03,84.0,0.8]
[1771605003346,11.64125116,84.02,84.0,0.8]
[1771605003662,11.89803169,84.048,84.0,0.8]
[1771605003663,11.64125116,84.04,84.001,11.90462018]
[1771605004156,11.89803169,84.048,84.01,11.64125116]
[1771605004653,11.64125116,84.05,84.01,11.64125116]
[1771605004654,11.64125116,84.05,84.011,4.30623547]
[1771605005745,11.64125116,84.04,84.011,4.30623547]
[1771605005950,11.64125116,84.04,84.001,11.90462018]
[1771605005951,4.28624352,84.039,84.001,11.90462018]
[1771605006261,11.89937885,84.038,84.003,11.90433674]
[1771605006460,11.89937885,84.038,84.003,16.02963402]
[1771605006847,11.64125116,84.04,84.004,4.12529728]
[1771605007243,11.64125116,84.03,84.004,4.12529728]
[1771605007445,11.64125116,84.02,84.0,0.8]
[1771605007760,11.64125116,84.03,84.001,4.36727186]
[1771605008078,11.64125116,84.03,84.0,0.8]
[1771605008246,11.64125116,84.03,84.001,11.90462018]
[1771605008444,4.35694023,84.029,84.0,0.8]
[1771605009065,11.8978215,84.049,84.011,4.36727186]
[1771605009359,11.64125116,84.06,84.021,4.36727186]
[1771605009559,11.89681615,84.057,84.021,4.36727186]
[1771605009755,11.64125116,84.05,84.021,4.36727186]
[1771605009941,4.35694023,84.039,84.001,16.27189204]
[1771605010145,11.64125116,84.03,84.002,4.36727186]
[1771605010360,16.25770546,84.029,84.0,12.70469287]
[1771605010561,11.90076523,84.029,84.0,0.8]
[1771605010754,11.64125116,84.03,84.001,11.90462018]
[1771605010946,4.35694023,84.037,84.002,4.36727186]
[1771605011370,11.8991157,84.04,84.011,4.36727186]
[1771605011659,4.35694023,84.048,84.011,4.36727186]
[1771605011972,11.89810463,84.047,84.011,4.36727186]
[1771605012464,11.64125116,84.05,84.013,4.36727186]
[1771605012670,16.25349887,84.058,84.021,4.36727186]
[1771605013052,11.64125116,84.05,84.021,4.36727186]
[1771605013256,11.64125116,84.05,84.013,4.36727186]
[1771605014048,4.35694023,84.057,84.013,4.36727186]
[1771605014258,11.89584948,84.063,84.02,11.64125116]
[1771605014259,4.35694023,84.059,84.02,11.64125116]
[1771605014455,11.64125116,84.05,84.013,4.36727186]
[1771605014954,4.35694023,84.058,84.021,4.36727186]
[1771605015875,11.89583636,84.064,84.021,4.36727186]
[1771605016054,11.89583636,84.064,84.031,4.36727186]
[1771605016455,11.89513251,84.068,84.032,11.90022848]
[1771605016761,4.35694023,84.093,84.041,4.36727186]
[1771605016969,11.89258616,84.086,84.051,4.36727186]
[1771605017150,11.64125116,84.08,84.051,4.36727186]
[1771605017955,4.35694023,84.069,84.032,11.90022848]
[1771605018160,27.78573039,84.08,84.041,4.36727186]
[1771605018364,11.89258616,84.086,84.051,4.36727186]
[1771605018564,11.64125116,84.09,84.051,4.36727186]
[1771605018868,4.35694023,84.101,84.061,4.36727186]
[1771605018869,11.64125116,84.1,84.061,4.36727186]
[1771605019177,15.99819139,84.07,84.031,4.36727186]
[1771605019350,11.64125116,84.06,84.031,4.36727186]
[1771605020157,4.35694023,84.069,84.031,4.36727186]
[1771605020357,11.64125116,84.08,84.041,4.36727186]
[1771605020676,4.35694023,84.092,84.043,4.36727186]
[1771605020862,11.64125116,84.08,84.043,4.36727186]
[1771605021568,15.99819139,84.08,84.042,11.89881249]
[1771605021776,4.35694023,84.079,84.042,11.89881249]
[1771605021970,4.35694023,84.079,84.043,4.36727186]
[1771605022375,11.64125116,84.08,84.043,4.36727186]
[1771605022674,11.89357627,84.079,84.044,11.89852934]
[1771605023174,4.35694023,84.069,84.034,4.36727186]
[1771605023482,4.35694023,84.069,84.023,29.75356366]
[1771605023483,45.98445719,84.079,84.041,4.36727186]
[1771605024069,11.64125116,84.08,84.041,4.36727186]
[1771605024267,47.53670031,84.146,84.071,4.36727186]
[1771605024268,4.35694023,84.113,84.071,4.36727186]
[1771605024460,4.35694023,84.109,84.071,4.36727186]
[1771605025182,11.64125116,84.1,84.06,11.64125116]
[1771605025375,11.64125116,84.08,84.051,16.26481025]
[1771605025576,11.64125116,84.07,84.046,11.89816979]
[1771605025777,15.99819139,84.08,84.046,11.89816979]
[1771605026175,41.61316402,84.108,84.043,11.89867091]
[1771605026176,11.64125116,84.07,84.043,11.89867091]
[1771605026482,4.35694023,84.079,84.043,16.26594277]
[1771605026664,4.35694023,84.079,84.044,4.36727186]
[1771605026981,11.64125116,84.09,84.051,4.36727186]
[1771605027179,4.35694023,84.079,84.04,11.64125116]
[1771605027384,11.64125116,84.07,84.041,11.89895408]
[1771605027883,4.35694023,84.079,84.042,4.36727186]
[1771605028182,11.89216187,84.089,84.051,4.36727186]
[1771605028480,11.64125116,84.08,84.044,4.36727186]
[1771605028780,11.64125116,84.1,84.06,11.64125116]
[1771605028985,11.64125116,84.1,84.061,4.36727186]
[1771605029182,11.64125116,84.09,84.061,4.36727186]
[1771605029678,4.35694023,84.089,84.051,16.26481025]
[1771605029895,4.35694023,84.079,84.043,11.89867091]
[1771605030071,4.35694023,84.079,84.044,4.36727186]
[1771605030601,11.64125116,84.08,84.044,4.36727186]
[1771605030966,11.64125116,84.06,84.031,11.90032482]
[1771605031285,4.35694023,84.059,84.021,11.90178645]
[1771605031480,4.35694023,84.059,84.022,4.36727186]
[1771605031672,4.35694023,84.069,84.03,11.64125116]
[1771605031870,4.35694023,84.069,84.031,4.36727186]
[1771605032175,11.64125116,84.07,84.031,4.36727186]
[1771605032986,4.35694023,84.079,84.041,4.36727186]
[1771605033491,11.89371773,84.078,84.043,4.36727186]
[1771605033685,11.64125116,84.07,84.043,4.36727186]
[1771605033889,11.89371773,84.078,84.043,4.36727186]
[1771605034276,11.89251158,84.087,84.051,4.36727186]
[1771605034879,11.64125116,84.1,84.061,4.36727186]
[1771605035487,11.64125116,84.1,84.06,11.64125116]
[1771605035488,11.8907478,84.099,84.063,4.36727186]
[1771605035685,11.64125116,84.08,84.046,4.36727186]
[1771605035890,11.64125116,84.07,84.046,4.36727186]
[1771605036193,11.64125116,84.07,84.035,4.36727186]
[1771605036995,11.64125116,84.06,84.035,4.36727186]
[1771605037194,11.64125116,84.06,84.026,16.25756951]
[1771605037378,11.89640609,84.059,84.027,4.35649128]
[1771605037579,41.63742132,84.059,84.027,4.35649128]
[1771605037779,4.22117117,84.058,84.02,11.64125116]
[1771605037982,11.64125116,84.05,84.019,11.90206976]
[1771605038795,11.89640609,84.059,84.031,4.35649128]
[1771605039104,11.64125116,84.08,84.041,4.35649128]
[1771605039477,11.89357627,84.079,84.051,4.35649128]
[1771605039779,4.22117117,84.059,84.018,4.35649128]
[1771605039979,11.64125116,84.05,84.018,4.35649128]
[1771605040810,11.64125116,84.03,84.005,4.35649128]
[1771605041484,4.22117117,84.038,84.0,0.8]
[1771605041485,11.64125116,84.02,84.0,0.8]
[1771605041685,11.90065334,84.029,84.001,11.90462018]
[1771605041881,11.90065334,84.029,84.001,4.35649128]
[1771605042082,11.64125116,84.02,84.0,0.8]
[1771605042706,11.90065334,84.029,84.0,0.8]
[1771605043484,41.39270712,84.03,84.0,0.8]
[1771605043485,11.64125116,84.03,84.002,4.35649128]
[1771605043711,11.64125116,84.02,84.0,0.8]
[1771605043888,11.67776231,84.02,84.0,0.8]
[1771605044088,11.67776231,84.01,84.0,0.8]
[1771605044491,11.67776231,84.01,83.976,11.90809764]
[1771605044492,4.22117117,84.009,83.976,11.90809764]
[1771605044689,11.67776231,84.0,83.976,11.90809764]
[1771605044992,3.69383402,84.033,83.955,4.35649128]
[1771605045188,19.32860897,84.083,83.929,89.3612458]
[1771605045189,4.22117117,84.089,84.021,4.35649128]
[1771605045390,4.22117117,84.077,84.007,41.66319472]
[1771605045629,4.22117117,84.059,84.01,11.67776231]
[1771605045806,4.22117117,84.051,84.03,11.67776231]
[1771605046106,4.22117117,84.051,84.007,41.66319472]
[1771605046107,4.22117117,84.069,84.02,11.67776231]
[1771605046404,15.89893348,84.06,84.02,11.67776231]
[1771605046705,4.22117117,84.049,84.01,11.67776231]
[1771605046902,4.22117117,84.039,84.0,11.67776231]
[1771605047208,4.22117117,84.039,83.99,11.67776231]
[1771605047209,11.67776231,84.03,83.99,11.67776231]
[1771605047397,11.89937885,84.038,84.003,4.35649128]